Workbook

Sheet Sheet1
A1: ChargeType | B1: 2014-01-01 | C1: 2014-02-01 | D1: 2014-03-01 | E1: 2014-04-01 | F1: 2014-05-01 | G1: 2014-06-01 | H1: 2014-07-01 | I1: 2014-08-01 | J1: 2014-09-01 | K1: 2014-10-01 | L1: 2014-11-01 | M1: 2014-12-01 | O1: 2015-01-01 | P1: 2015-02-01 | Q1: 2015-03-01 | R1: 2015-04-01 | S1: 2015-05-01 | T1: 2015-06-01 | U1: 2015-07-01 | V1: 2015-08-01 | W1: 2015-09-01 | X1: 2015-10-01 | Y1: 2015-11-01 | Z1: 2015-12-01 | AB1: 2014 | AC1: 2015 | AD1: Diff
A2: Schd1aTaNitsChg | B2: 247048.23 | C2: 223140.34 | D2: 246716.18 | E2: 239078.93 | F2: 247048.23 | G2: 239078.93 | H2: 247048.23 | I2: 247048.23 | J2: 239078.93 | K2: 247048.23 | L2: 239410.99 | M2: 247048.23 | O2: 262611.63 | P2: 237197.6 | Q2: 262258.66 | R2: 254140.29 | S2: 262611.63 | T2: 254140.29 | U2: 262611.63 | V2: 262611.63 | W2: 254140.29 | X2: 262611.63 | Y2: 254493.26 | Z2: 262611.63 | AB2: =SUM(B2:M2) -> 2908793.68 | AC2: =SUM(O2:Z2) -> 3092040.17 | AD2: =AC2-AB2 -> 183246.49
A3: MonthlyAssessmentChg | B3: -9.35 | C3: -8.45 | D3: -9.35 | E3: -9.05 | F3: -9.35 | G3: -9.05 | H3: -9.35 | I3: -9.35 | J3: -9.05 | K3: -9.35 | L3: -9.07 | M3: -9.35 | O3: 12.19 | P3: 11.01 | Q3: 12.17 | R3: 11.79 | S3: 12.19 | T3: 11.79 | U3: 12.19 | V3: 12.19 | W3: 11.79 | X3: 12.19 | Y3: 11.81 | Z3: 12.19 | AB3: =SUM(B3:M3) -> -110.12 | AC3: =SUM(O3:Z3) -> 143.5 | AD3: =AC3-AB3 -> 253.62
A4: Schd11BprNitsChg | B4: 477486.38 | C4: 642394.91 | D4: 695052.11 | E4: 668723.51 | F4: 668723.51 | G4: 668408.75 | H4: 668406.95 | I4: 677247.67 | J4: 677732.82 | K4: 677732.87 | L4: 718694.36 | M4: 718694.36 | O4: 718694.36 | P4: 822364.56 | Q4: 829883.74 | R4: 826984.13 | S4: 827009.53 | T4: 823434.03 | U4: 826535.07 | V4: 829533.73 | W4: 838585.18 | X4: 833865.35 | Y4: 771918.87 | Z4: 771918.87 | AB4: 7959298.2 | AC4: 9720727.42 | AD4: 1761429.22
A5: Schd11BpzNitsChg | B5: 112732.58 | C5: 111929.68 | D5: 111929.68 | E5: 111929.68 | F5: 111929.68 | G5: 89523.88 | H5: 89523.88 | I5: 92349.11 | J5: 114079.07 | K5: 114079.07 | L5: 15420.9 | M5: 15420.9 | O5: 15420.9 | P5: 12154.13 | Q5: 12154.13 | R5: 12154.13 | S5: 12154.13 | T5: 12154.13 | U5: 12154.13 | V5: 585.72 | W5: 288.9 | X5: 288.9 | Y5: -89645.06 | Z5: -119399.08 | AB5: 1090848.11 | AC5: -119534.94 | AD5: -1210383.05
A6: Schd12FercPtpIWNitsGfaChg | B6: 33365.43 | C6: 35358.68 | D6: 30491.22 | E6: 28688.42 | F6: 22846.41 | G6: 25465.02 | H6: 28255.33 | I6: 30233.42 | J6: 33243.84 | K6: 26469.2 | L6: 23148.07 | M6: 27704.38 | O6: 30271.65 | P6: 37549.6 | Q6: 36225.49 | R6: 31237.34 | S6: 26023.14 | T6: 27651.05 | U6: 34713.67 | V6: 39650.3 | W6: 35791.39 | X6: 32125.51 | Y6: 27359.64 | Z6: 28525.59 | AB6: 345269.42 | AC6: 387124.37 | AD6: 41854.95
A8: AdjSchd11BprNitsChg | B8: -2157.37 | C8: -1907.78 | D8: -1740.64 | E8: -340.85 | F8: -489.79 | G8: -1368.18 | H8: -1862.19 | I8: -1183.85 | J8: -815.2 | K8: -1346.06 | O8: -778.33 | P8: -924 | Q8: -874.28 | R8: -2067.54 | S8: -99.44 | T8: -1334.18 | U8: -1905.95 | V8: -5082.75 | W8: -2863.05 | X8: -1694.65 | Y8: 73108.52 | Z8: 122672.26 | AB8: -13211.91 | AC8: 178156.61 | AD8: 191368.52
A9: AdjSchd11BpzNitsChg | AB9: 0 | AC9: 0 | AD9: 0
A10: AdjSchd9NitsChg | AB10: 0 | AC10: 0 | AD10: 0
A11: Schd11BprPtpChg | B11: 272.93 | C11: 63.26 | D11: 215.22 | E11: 40.72 | G11: 2.05 | H11: 39.12 | I11: 3.31 | T11: 13.16 | Z11: 2.58 | AB11: 636.61 | AC11: 15.74 | AD11: -620.87
A12: Schd12FercPtpTOChg | D12: 8.73 | AB12: 8.73 | AC12: 0 | AD12: -8.73
A13: Schd1aTaPtpChg | B13: 81.93 | C13: 13.34 | D13: 61.34 | E13: 11.81 | T13: 1.95 | Y13: -153.48 | AB13: 168.42 | AC13: -151.53 | AD13: -319.95
A14: Sch1ScNitsChg | AB14: 0 | AC14: 0 | AD14: 0
A15: Schd1ScPtpChg | B15: 30.05 | C15: 6.96 | D15: 23.19 | E15: 4.39 | G15: 0.11 | H15: 2.07 | I15: 0.17 | T15: 1.25 | Y15: 0.04 | Z15: 0.13 | AB15: 66.94 | AC15: 1.42 | AD15: -65.52
A16: Schd2RvPtpChg | D16: 1.03 | E16: 0.26 | F16: 0.57 | G16: 0.07 | AB16: 1.93 | AC16: 0 | AD16: -1.93
A17: Schd3RfDirAssignChg | AB17: 0 | AC17: 0 | AD17: 0
A18: Schd5SpDirAssignChg | AB18: 0 | AC18: 0 | AD18: 0
A19: Schd6SuDirAssignChg | AB19: 0 | AC19: 0 | AD19: 0
A20: Schd8NfPtpChg | B20: 330.3 | C20: 76.7 | D20: 250.2 | E20: 47.34 | Q20: 0.39 | T20: 13.65 | Y20: 3.05 | AB20: 704.54 | AC20: 17.09 | AD20: -687.45
A21: Schd11BpzPtpChg | E21: 32.56 | G21: 128.34 | H21: 1766.29 | I21: 143.27 | J21: 210.2 | K21: -17.1 | Q21: 80.33 | T21: 2.44 | Z21: 17.46 | AB21: 2263.56 | AC21: 100.23 | AD21: -2163.33
A22: AdjSchd7FirmPtpChg | O22: -45.98 | AB22: 0 | AC22: -45.98 | AD22: -45.98
A23: AdjMonthlyAssessmentChg | R23: 100.77 | AB23: 0 | AC23: 100.77 | AD23: 100.77
A24: AdjSchd11BpzPtpChg | B24: 249.75 | C24: 135 | G24: -135 | H24: -952.3 | I24: -45.14 | J24: -211.02 | K24: 3.87 | Q24: 55.71 | T24: 2.69 | AB24: -954.84 | AC24: 58.4 | AD24: 1013.24
A25: AdjSchd1aTaPtpChg | B25: -62291.98 | T25: -2997.35 | U25: -2143.21 | V25: -1250.78 | W25: -382.3 | X25: -2272.96 | Z25: -347.43 | AB25: -62291.98 | AC25: -9394.03 | AD25: 52897.95
A26: Schd12FercPtpTOChg | B26: 13.76 | C26: 2.24 | E26: 1.92 | H26: -0.06 | Z26: -0.01 | AB26: 17.86 | AC26: -0.01 | AD26: -17.87
A27: AdjSchd8NfPtpChg | O27: -8.74 | R27: -0.39 | AB27: 0 | AC27: -9.13 | AD27: -9.13
A28: AdjFS_LOSS_ADJ | P28: -1.18 | AB28: 0 | AC28: -1.18 | AD28: -1.18
A29: ManualAdj | S29: 1039.22 | AB29: 0 | AC29: 1039.22 | AD29: 1039.22
A30: Schd2RvPtpChg | V30: 0.02 | AB30: 0 | AC30: 0.02 | AD30: 0.02
A31: AdjMISC_ADJ | AB31: 0 | AC31: 0 | AD31: 0
A32: AdjSchd2RvNitsChg | AB32: =SUM(B32:M32) -> 0 | AC32: =SUM(O32:Z32) -> 0 | AD32: 0
A34: CU | B34: 11000 | C34: 11000 | D34: 11000 | E34: 11000 | F34: 11000 | G34: 11000 | H34: 11000 | I34: 11000 | J34: 11000 | K34: 11000 | L34: 11000 | M34: 11000 | O34: 11000 | P34: 11000 | Q34: 11000 | R34: 11000 | S34: 11000 | T34: 11000 | U34: 10736.81 | V34: 11000 | W34: 11263.19 | X34: 11000 | Y34: 11000 | Z34: 11000 | AB34: =SUM(B34:M34) -> 132000 | AC34: =SUM(O34:Z34) -> 132000 | AD34: 0
A35: MISO GL | B35: 358715.72 | C35: 341257.78 | D35: 320329.78 | E35: 331173.28 | F35: 338000 | G35: 332882.2 | H35: 339999.86 | I35: 350000 | J35: 340991.3 | K35: 351997.01 | L35: 343018.04 | M35: 354058.8 | O35: 354383.9 | P35: 341386.4 | Q35: 366258.62 | R35: 354500 | S35: 359902.64 | T35: 358132.6 | U35: 356422.23 | V35: 356643.77 | W35: 341078.36 | X35: 367075.94 | Y35: 348573.35 | Z35: 433679.21 | AB35: 4102423.77 | AC35: 4338037.02 | AD35: 235613.25
A37: Total 565 | B37: =B35+B34+SUM(B2:B32) -> 1176868.36 | C37: =C35+C34+SUM(C2:C32) -> 1363462.66 | D37: =D35+D34+SUM(D2:D32) -> 1414328.69 | E37: =E35+E34+SUM(E2:E32) -> 1390382.92 | F37: =F35+F34+SUM(F2:F32) -> 1399049.26 | G37: =G35+G34+SUM(G2:G32) -> 1364977.12 | H37: =H35+H34+SUM(H2:H32) -> 1383217.83 | I37: =I35+I34+SUM(I2:I32) -> 1406786.84 | J37: =J35+J34+SUM(J2:J32) -> 1415300.89 | K37: =K35+K34+SUM(K2:K32) -> 1426957.74 | L37: =L35+L34+SUM(L2:L32) -> 1350683.29 | M37: =M35+M34+SUM(M2:M32) -> 1373917.32 | O37: =O35+O34+SUM(O2:O32) -> 1391561.58 | P37: =P35+P34+SUM(P2:P32) -> 1460738.12 | Q37: =Q35+Q34+SUM(Q2:Q32) -> 1517054.96 | R37: =R35+R34+SUM(R2:R32) -> 1488060.52 | S37: =S35+S34+SUM(S2:S32) -> 1499653.04 | T37: =T35+T34+SUM(T2:T32) -> 1482227.5 | U37: =U35+U34+SUM(U2:U32) -> 1499136.57 | V37: =V35+V34+SUM(V2:V32) -> 1493703.83 | W37: =W35+W34+SUM(W2:W32) -> 1477913.75 | X37: =X35+X34+SUM(X2:X32) -> 1503011.91 | Y37: =Y35+Y34+SUM(Y2:Y32) -> 1396670 | Z37: =Z35+Z34+SUM(Z2:Z32) -> 1510693.4 | AB37: =AB34+AB35+SUM(AB2:AB32) -> 16465932.92 | AC37: =AC34+AC35+SUM(AC2:AC32) -> 17720425.18 | AD37: =AC37-AB37 -> 1254492.26

Sheet Sheet2

Sheet Sheet3
